[Event "36th Indian-ch U13 Open 2023"]
[Site "Secunderabad"]
[Date "2023.12.06"]
[Round "5.3"]
[White "Banik Hrishikesh Kumar"]
[Black "Mrinmoy Rajkhowa"]
[Result "0-1"]
[ECO "B81"]
[WhiteElo "1627"]
[BlackElo "1840"]
[Annotator "NA COMBH"]
[PlyCount "120"]
[EventDate "2023.12.04"]
[EventType "swiss"]
[EventCountry "IND"]
[SourceTitle "playchess.com"]
[Source "ChessBase"]
[SourceQuality "1"]
[TimeControl "5400+30"]

1. e4 {[%emt 0:00:12]} c5 {[%emt 0:00:05]} 2. Nf3 {[%emt 0:00:13]} d6 {[%emt 0:00:10]} 3. d4 {[%emt 0:00:07]} cxd4 {[%emt 0:00:04]} 4. Nxd4 {[%emt 0:00:06]} Nf6 {[%emt 0:00:04]} 5. Nc3 {[%emt 0:00:10]} a6 {[%emt 0:00:03]} 6. h3 {[%emt 0:00:09]} e6 {[%emt 0:00:31]} 7. g4 {[%emt 0:00:14]} Nfd7 {[%emt 0:00:17]} 8. Bg2 {[%emt 0:00:23]} Nc6 {[%emt 0:01:18]} 9. Be3 {[%emt 0:03:23]} Be7 {[%emt 0:00:06]} 10. O-O {[%emt 0:04:59]} O-O {[%emt 0:02:19]} 11. Qd2 {[%emt 0:07:37]} Nde5 {[%emt 0:03:18]} 12. b3 {[%emt 0:02:12]} Nxd4 {[%emt 0:07:13]} 13. Bxd4 {[%emt 0:02:13]} b5 {[%emt 0:04:25]} 14. Ne2 {[%emt 0:04:50]} Bb7 {[%emt 0:05:34]} 15. f4 {[%emt 0:01:03]} Ng6 {[%emt 0:01:49]} 16. Rad1 {[%emt 0:08:55]} e5 {[%emt 0:13:31]} 17. Be3 {[%emt 0:05:10]} exf4 {[%emt 0:00:37]} 18. Nxf4 {[%emt 0:00:16]} Ne5 {[%emt 0:03:22]} 19. Nd5 {[%emt 0:05:25]} Bxd5 {[%emt 0:00:48]} 20. exd5 {[%emt 0:05:05]} Re8 {[%emt 0:06:33]} 21. Bd4 {[%emt 0:06:30]} Bf6 {[%emt 0:10:14]} 22. Rf2 {[%emt 0:02:56]} Nd7 {[%emt 0:07:06]} 23. Bxf6 {[%emt 0:00:32]} Nxf6 {[%emt 0:00:15]} 24. Rdf1 {[%emt 0:00:05]} Re7 {[%emt 0:05:38]} 25. Qf4 {[%emt 0:09:00]} Qb6 {[%emt 0:02:01]} 26. Kh2 {[%emt 0:00:39]} Rae8 {[%emt 0:04:24]} 27. Qg5 {[%emt 0:03:40]} Nd7 {[%emt 0:03:23]} 28. h4 {[%emt 0:03:36]} Qd4 {[%emt 0:01:22]} 29. h5 {[%emt 0:00:53]} Qe5+ {[%emt 0:03:30]} 30. Qxe5 {[%emt 0:00:07]} Nxe5 {[%emt 0:00:21]} 31. Kg3 {[%emt 0:00:31]} Rc7 {[%emt 0:01:36]} 32. Rd2 {[%emt 0:00:34]} Rc3+ {[%emt 0:00:52]} 33. Kf4 {[%emt 0:00:18]} f6 {[%emt 0:01:12]} 34. Rff2 {[%emt 0:03:26]} g6 {[%emt 0:02:22]} 35. hxg6 {[%emt 0:03:57]} Nxg6+ {[%emt 0:02:09]} 36. Kf5 {[%emt 0:00:16]} Kf7 {[%emt 0:04:42]} 37. Rfe2 {[%emt 0:00:11]} Nh4+ {[%emt 0:03:21]} 38. Kf4 {[%emt 0:00:08]} Ng6+ {[%emt 0:00:05]} 39. Kf5 {[%emt 0:00:07]} Rce3 {[%emt 0:01:55]} 40. Rxe3 {[%emt 0:00:06]} Rxe3 {[%emt 0:00:02]} 41. Be4 {[%emt 0:00:09]} Re1 {[%emt 0:00:59]} 42. Rf2 {[%emt 0:00:12]} h6 {[%emt 0:00:48]} 43. c4 {[%emt 0:00:44]} Rc1 {[%emt 0:00:46]} 44. Bc2 {[%emt 0:01:27]} Re1 {[%emt 0:00:15]} 45. Be4 {[%emt 0:00:05]} Rc1 {[%emt 0:00:03]} 46. Bc2 {[%emt 0:00:06]} Re1 {[%emt 0:00:59]} 47. Be4 {[%emt 0:00:05]} b4 {[%emt 0:00:14]} 48. c5 {[%emt 0:06:17]} dxc5 {[%emt 0:00:01]} 49. d6 {[%emt 0:00:06]} Rd1 {[%emt 0:00:13]} 50. Bb7 {[%emt 0:00:06]} Rd4 {[%emt 0:00:33]} 51. Be4 {[%emt 0:01:21]} Rxd6 {[%emt 0:00:05]} 52. Rc2 {[%emt 0:01:06]} Rd1 {[%emt 0:00:20]} 53. Bf3 {[%emt 0:00:09]} Rd4 {[%emt 0:00:07]} 54. Be4 {[%emt 0:00:08]} Rd1 {[%emt 0:00:34]} 55. Bf3 {[%emt 0:00:05]} Re1 {[%emt 0:01:42]} 56. Bd5+ {[%emt 0:01:03]} Kg7 {[%emt 0:00:11]} 57. Be4 {[%emt 0:00:04]} Kf7 {[%emt 0:00:32]} 58. Bd5+ {[%emt 0:00:04]} Kg7 {[%emt 0:00:06]} 59. Be4 {[%emt 0:00:05]} Nf8 {[%emt 0:00:29]} 60. Bd3 {[%emt 0:02:38]} Ne6 {[%emt 0:00:43]} 0-1

[Event "36th Indian-ch U13 Open 2023"]
[Site "Secunderabad"]
[Date "2023.12.06"]
[Round "5.4"]
[White "Adharsh K"]
[Black "Vandan Alankar Sawai"]
[Result "1-0"]
[ECO "C11"]
[WhiteElo "1831"]
[BlackElo "1619"]
[Annotator "NA COMBH"]
[PlyCount "105"]
[EventDate "2023.12.04"]
[EventType "swiss"]
[EventCountry "IND"]
[SourceTitle "playchess.com"]
[Source "ChessBase"]
[SourceQuality "1"]
[TimeControl "5400+30"]

1. e4 {[%emt 0:00:40]} e6 {[%emt 0:00:20]} 2. d4 {[%emt 0:00:03]} d5 {[%emt 0:00:09]} 3. Nc3 {[%emt 0:00:04]} Nf6 {[%emt 0:00:12]} 4. e5 {[%emt 0:00:11]} Nfd7 {[%emt 0:00:26]} 5. f4 {[%emt 0:00:13]} c5 {[%emt 0:00:11]} 6. Nf3 {[%emt 0:00:04]} Nc6 {[%emt 0:00:14]} 7. Be3 {[%emt 0:00:10]} cxd4 {[%emt 0:00:23]} 8. Nxd4 {[%emt 0:00:39]} Bc5 {[%emt 0:00:09]} 9. Qd2 {[%emt 0:08:07]} O-O {[%emt 0:00:31]} 10. h4 {[%emt 0:02:06]} Qe7 {[%emt 0:08:38]} 11. O-O-O {[%emt 0:07:15]} a6 {[%emt 0:01:51]} 12. g4 {[%emt 0:13:02]} Nxd4 {[%emt 0:12:02]} 13. Bxd4 {[%emt 0:00:53]} b5 {[%emt 1:11:54]} 14. Bg2 {[%emt 0:02:57]} b4 {[%emt 0:00:00]} 15. Ne2 {[%emt 0:00:14]} a5 {[%emt 0:00:00]} 16. f5 {[%emt 0:05:12]} Bxd4 {[%emt 0:00:00]} 17. Nxd4 {[%emt 0:00:57]} Nxe5 {[%emt 0:00:00]} 18. Qe2 {[%emt 0:00:38]} Qc7 {[%emt 0:00:00]} 19. Rhe1 {[%emt 0:02:33]} Nc4 {[%emt 0:00:00]} 20. fxe6 {[%emt 0:00:34]} fxe6 {[%emt 0:00:00]} 21. Nxe6 {[%emt 0:00:10]} Bxe6 {[%emt 0:00:00]} 22. Qxe6+ {[%emt 0:00:08]} Kh8 {[%emt 0:00:00]} 23. Bxd5 {[%emt 0:00:43]} Rac8 {[%emt 0:00:00]} 24. Bxc4 {[%emt 0:02:11]} Qxc4 {[%emt 0:00:00]} 25. Qxc4 {[%emt 0:00:16]} Rxc4 {[%emt 0:00:00]} 26. Rg1 {[%emt 0:00:49]} Kg8 {[%emt 0:00:00]} 27. h5 {[%emt 0:01:41]} h6 {[%emt 0:00:00]} 28. b3 {[%emt 0:04:45]} Rc5 {[%emt 0:00:00]} 29. Rg2 {[%emt 0:00:20]} Rf4 {[%emt 0:00:00]} 30. Kb2 {[%emt 0:00:42]} Kf7 {[%emt 0:00:00]} 31. Rd7+ {[%emt 0:01:02]} Kf6 {[%emt 0:00:00]} 32. Rd6+ {[%emt 0:01:00]} Kf7 {[%emt 0:00:00]} 33. a3 {[%emt 0:06:58]} Rg5 {[%emt 0:00:00]} 34. Ra6 {[%emt 0:00:36]} Rc5 {[%emt 0:00:00]} 35. Rg6 {[%emt 0:02:13]} Rf6 {[%emt 0:00:00]} 36. Rxf6+ {[%emt 0:00:05]} Kxf6 {[%emt 0:00:00]} 37. axb4 {[%emt 0:00:08]} axb4 {[%emt 0:00:00]} 38. Re2 {[%emt 0:00:05]} g6 {[%emt 0:00:00]} 39. hxg6 {[%emt 0:00:12]} Kxg6 {[%emt 0:00:00]} 40. Re4 {[%emt 0:00:07]} Rb5 {[%emt 0:00:00]} 41. c3 {[%emt 0:01:19]} bxc3+ {[%emt 0:00:00]} 42. Kxc3 {[%emt 0:00:05]} Kg5 {[%emt 0:00:00]} 43. b4 {[%emt 0:00:05]} Rb8 {[%emt 0:00:00]} 44. Kc4 {[%emt 0:00:09]} Rc8+ {[%emt 0:00:00]} 45. Kd5 {[%emt 0:00:10]} Rd8+ {[%emt 0:00:00]} 46. Kc6 {[%emt 0:00:06]} Rc8+ {[%emt 0:00:00]} 47. Kb7 {[%emt 0:00:05]} Rc1 {[%emt 0:00:00]} 48. b5 {[%emt 0:00:05]} Rb1 {[%emt 0:00:00]} 49. b6 {[%emt 0:00:04]} Rc1 {[%emt 0:00:00]} 50. Kb8 {[%emt 0:00:05]} Rb1 {[%emt 0:00:00]} 51. b7 {[%emt 0:00:28]} Rb2 {[%emt 0:00:00]} 52. Ra4 {[%emt 0:00:23]} Rf2 {[%emt 0:00:00]} 53. Ka8 {[%emt 0:00:05]} 1-0

[Event "36th Indian-ch U13 Open 2023"]
[Site "Secunderabad"]
[Date "2023.12.06"]
[Round "5.5"]
[White "Darshan, V P S"]
[Black "Siddhanth Poonja"]
[Result "0-1"]
[ECO "B06"]
[WhiteElo "1670"]
[BlackElo "1806"]
[Annotator "NA COMBH"]
[PlyCount "148"]
[EventDate "2023.12.04"]
[EventType "swiss"]
[EventCountry "IND"]
[SourceTitle "playchess.com"]
[Source "ChessBase"]
[SourceQuality "1"]
[TimeControl "5400+30"]

1. e4 {[%emt 0:00:02]} c5 {[%emt 0:01:01]} 2. Nf3 {[%emt 0:00:20]} g6 {[%emt 0:00:52]} 3. c3 {[%emt 0:00:24]} d5 {[%emt 0:00:12]} 4. exd5 {[%emt 0:00:34]} Qxd5 {[%emt 0:00:10]} 5. d4 {[%emt 0:00:25]} Bg7 {[%emt 0:00:07]} 6. Be3 {[%emt 0:00:11]} cxd4 {[%emt 0:00:14]} 7. cxd4 {[%emt 0:00:13]} Nf6 {[%emt 0:02:58]} 8. Be2 {[%emt 0:02:42]} a6 {[%emt 0:05:29]} 9. Nc3 {[%emt 0:03:47]} Qd6 {[%emt 0:03:46]} 10. O-O {[%emt 0:06:15]} O-O {[%emt 0:02:40]} 11. a3 {[%emt 0:06:34]} b5 {[%emt 0:08:53]} 12. Ne5 {[%emt 0:04:35]} Bb7 {[%emt 0:05:23]} 13. Bf3 {[%emt 0:01:57]} Bxf3 {[%emt 0:05:57]} 14. Qxf3 {[%emt 0:00:54]} Nbd7 {[%emt 0:02:22]} 15. Nxd7 {[%emt 0:11:49]} Qxd7 {[%emt 0:01:41]} 16. Rfd1 {[%emt 0:00:34]} Rfd8 {[%emt 0:03:35]} 17. d5 {[%emt 0:05:58]} Qb7 {[%emt 0:03:05]} 18. Bd4 {[%emt 0:09:14]} Rd7 {[%emt 0:04:01]} 19. Bxf6 {[%emt 0:03:44]} Bxf6 {[%emt 0:11:09]} 20. Ne4 {[%emt 0:02:24]} Qb6 {[%emt 0:01:53]} 21. Rd2 {[%emt 0:04:42]} Be5 {[%emt 0:09:33]} 22. Ng5 {[%emt 0:04:40]} Qf6 {[%emt 0:00:12]} 23. Qxf6 {[%emt 0:00:50]} exf6 {[%emt 0:01:41]} 24. Nf3 {[%emt 0:05:16]} Rc8 {[%emt 0:02:39]} 25. g3 {[%emt 0:07:04]} Rc5 {[%emt 0:02:24]} 26. Rad1 {[%emt 0:00:02]} Rd6 {[%emt 0:02:37]} 27. Ne1 {[%emt 0:01:53]} f5 {[%emt 0:01:30]} 28. Kg2 {[%emt 0:01:23]} a5 {[%emt 0:01:06]} 29. f4 {[%emt 0:03:01]} Bf6 {[%emt 0:03:50]} 30. Nf3 {[%emt 0:01:38]} a4 {[%emt 0:00:30]} 31. Ne5 {[%emt 0:01:06]} Bd8 {[%emt 0:01:27]} 32. Nc6 {[%emt 0:01:33]} Bb6 {[%emt 0:00:36]} 33. Rd3 {[%emt 0:01:39]} Kg7 {[%emt 0:01:08]} 34. Nb4 {[%emt 0:01:08]} Ba5 {[%emt 0:01:38]} 35. Nc6 {[%emt 0:00:02]} Rc2+ {[%emt 0:01:49]} 36. Kf3 {[%emt 0:00:42]} Bb6 {[%emt 0:00:31]} 37. R1d2 {[%emt 0:00:01]} Rc5 {[%emt 0:00:21]} 38. Rd1 {[%emt 0:01:06]} h6 {[%emt 0:01:45]} 39. Ne7 {[%emt 0:02:24]} Kf8 {[%emt 0:02:08]} 40. Nc6 {[%emt 0:00:15]} Rc2 {[%emt 0:03:06]} 41. R1d2 {[%emt 0:00:03]} Rc1 {[%emt 0:00:13]} 42. Rd1 {[%emt 0:00:18]} Rc5 {[%emt 0:00:03]} 43. Nb4 {[%emt 0:02:19]} Ba5 {[%emt 0:01:32]} 44. Nc6 {[%emt 0:00:05]} Bb6 {[%emt 0:00:47]} 45. Nb4 {[%emt 0:00:02]} Rc4 {[%emt 0:00:58]} 46. Nc6 {[%emt 0:01:41]} g5 {[%emt 0:00:43]} 47. Ne5 {[%emt 0:00:31]} Re4 {[%emt 0:00:41]} 48. R1d2 {[%emt 0:00:26]} Re1 {[%emt 0:00:21]} 49. h3 {[%emt 0:01:36]} h5 {[%emt 0:00:02]} 50. Nc6 {[%emt 0:01:32]} g4+ {[%emt 0:01:37]} 51. Kg2 {[%emt 0:00:04]} Rg1+ {[%emt 0:00:29]} 52. Kh2 {[%emt 0:00:02]} h4 {[%emt 0:00:55]} 53. Nd4 {[%emt 0:00:41]} Bxd4 {[%emt 0:00:22]} 54. Rxd4 {[%emt 0:00:03]} Rxg3 {[%emt 0:00:07]} 55. hxg4 {[%emt 0:00:12]} fxg4 {[%emt 0:00:49]} 56. f5 {[%emt 0:00:59]} Kg7 {[%emt 0:01:57]} 57. Rc2 {[%emt 0:01:34]} Kf6 {[%emt 0:00:28]} 58. Rc5 {[%emt 0:01:04]} Ke5 {[%emt 0:00:41]} 59. Rd2 {[%emt 0:00:12]} Rb3 {[%emt 0:00:17]} 60. Rc7 {[%emt 0:00:05]} f6 {[%emt 0:00:28]} 61. Rc6 {[%emt 0:00:34]} Rxd5 {[%emt 0:00:39]} 62. Re6+ {[%emt 0:00:10]} Kxf5 {[%emt 0:00:02]} 63. Rxd5+ {[%emt 0:00:45]} Kxe6 {[%emt 0:00:01]} 64. Rd2 {[%emt 0:00:06]} Ke5 {[%emt 0:00:09]} 65. Kg2 {[%emt 0:00:05]} f5 {[%emt 0:00:04]} 66. Re2+ {[%emt 0:00:03]} Kd4 {[%emt 0:00:04]} 67. Rf2 {[%emt 0:00:07]} Ke4 {[%emt 0:00:05]} 68. Rc2 {[%emt 0:00:15]} f4 {[%emt 0:00:06]} 69. Kh1 {[%emt 0:00:05]} h3 {[%emt 0:00:06]} 70. Kg1 {[%emt 0:00:02]} g3 {[%emt 0:00:04]} 71. Kh1 {[%emt 0:00:03]} f3 {[%emt 0:00:04]} 72. Kg1 {[%emt 0:00:03]} f2+ {[%emt 0:00:05]} 73. Kf1 {[%emt 0:00:03]} h2 {[%emt 0:00:06]} 74. Kg2 {[%emt 0:00:04]} f1=Q+ {[%emt 0:00:07]} 0-1

[Event "36th Indian-ch U13 Open 2023"]
[Site "Secunderabad"]
[Date "2023.12.06"]
[Round "5.6"]
[White "Chinmay Kowshik"]
[Black "Iniyan R S"]
[Result "1-0"]
[ECO "A44"]
[WhiteElo "1761"]
[BlackElo "1446"]
[Annotator "NA COMBH"]
[PlyCount "101"]
[EventDate "2023.12.04"]
[EventType "swiss"]
[EventCountry "IND"]
[SourceTitle "playchess.com"]
[Source "ChessBase"]
[SourceQuality "1"]
[TimeControl "5400+30"]

1. d4 {[%emt 0:00:08]} c5 {[%emt 0:00:19]} 2. d5 {[%emt 0:00:07]} e5 {[%emt 0:00:04]} 3. c4 {[%emt 0:00:11]} d6 {[%emt 0:00:04]} 4. Nc3 {[%emt 0:00:29]} g6 {[%emt 0:00:15]} 5. g3 {[%emt 0:01:29]} Bg7 {[%emt 0:00:04]} 6. Qa4+ {[%emt 0:02:30]} Bd7 {[%emt 0:01:02]} 7. Qb3 {[%emt 0:00:07]} Qb6 {[%emt 0:00:43]} 8. Ne4 {[%emt 0:02:38]} Qxb3 {[%emt 0:01:02]} 9. axb3 {[%emt 0:00:04]} Ke7 {[%emt 0:00:10]} 10. Nc3 {[%emt 0:08:56]} f5 {[%emt 0:01:58]} 11. f3 {[%emt 0:00:49]} Na6 {[%emt 0:00:50]} 12. e4 {[%emt 0:01:29]} Nb4 {[%emt 0:00:50]} 13. Kd1 {[%emt 0:00:16]} Nf6 {[%emt 0:00:14]} 14. Bh3 {[%emt 0:00:45]} Rhf8 {[%emt 0:00:36]} 15. Be3 {[%emt 0:03:11]} fxe4 {[%emt 0:01:21]} 16. Nxe4 {[%emt 0:00:42]} Nxe4 {[%emt 0:16:37]} 17. fxe4 {[%emt 0:00:36]} Bxh3 {[%emt 0:05:05]} 18. Nxh3 {[%emt 0:00:05]} Rf3 {[%emt 0:00:07]} 19. Ke2 {[%emt 0:01:16]} Rxe3+ {[%emt 0:00:05]} 20. Kxe3 {[%emt 0:00:02]} Nc2+ {[%emt 0:00:06]} 21. Ke2 {[%emt 0:00:41]} Nxa1 {[%emt 0:00:11]} 22. Rxa1 {[%emt 0:00:09]} Bh6 {[%emt 0:01:08]} 23. Nf2 {[%emt 0:00:22]} a6 {[%emt 0:00:14]} 24. Nd3 {[%emt 0:01:37]} Rc8 {[%emt 0:01:07]} 25. Ra4 {[%emt 0:00:31]} Rc7 {[%emt 0:01:07]} 26. b4 {[%emt 0:17:49]} b5 {[%emt 0:00:10]} 27. cxb5 {[%emt 0:00:10]} axb5 {[%emt 0:00:02]} 28. Ra5 {[%emt 0:00:52]} c4 {[%emt 0:00:05]} 29. Ne1 {[%emt 0:09:47]} Bc1 {[%emt 0:03:08]} 30. Rxb5 {[%emt 0:00:09]} Bxb2 {[%emt 0:00:03]} 31. Rb8 {[%emt 0:05:57]} Bd4 {[%emt 0:06:30]} 32. Nc2 {[%emt 0:01:33]} Kd7 {[%emt 0:06:34]} 33. Rh8 {[%emt 0:01:52]} h5 {[%emt 0:00:02]} 34. Na3 {[%emt 0:00:17]} c3 {[%emt 0:01:01]} 35. Kd3 {[%emt 0:00:13]} Rb7 {[%emt 0:01:53]} 36. Rh7+ {[%emt 0:00:10]} Kc8 {[%emt 0:00:01]} 37. Rxb7 {[%emt 0:00:21]} Kxb7 {[%emt 0:00:00]} 38. Nb5 {[%emt 0:00:07]} Kb6 {[%emt 0:00:33]} 39. Nxc3 {[%emt 0:01:22]} g5 {[%emt 0:00:13]} 40. Kc4 {[%emt 0:16:44]} g4 {[%emt 0:01:18]} 41. Nb5 {[%emt 0:00:33]} Bg1 {[%emt 0:00:52]} 42. Nxd6 {[%emt 0:00:05]} Bxh2 {[%emt 0:00:03]} 43. Nf5 {[%emt 0:00:05]} h4 {[%emt 0:01:00]} 44. gxh4 {[%emt 0:00:24]} Bf4 {[%emt 0:00:58]} 45. Kd3 {[%emt 0:00:04]} Kb5 {[%emt 0:00:25]} 46. d6 {[%emt 0:00:21]} Kc6 {[%emt 0:00:05]} 47. b5+ {[%emt 0:00:10]} Kd7 {[%emt 0:00:01]} 48. b6 {[%emt 0:00:09]} Kc6 {[%emt 0:00:03]} 49. h5 {[%emt 0:02:58]} Kxb6 {[%emt 0:00:46]} 50. h6 {[%emt 0:00:06]} g3 {[%emt 0:00:17]} 51. Ke2 {[%emt 0:00:20]} 1-0

[Event "36th Indian-ch U13 Open 2023"]
[Site "Secunderabad"]
[Date "2023.12.06"]
[Round "5.8"]
[White "Vivaan Vijay Saraogi"]
[Black "Saisarvesh S"]
[Result "1-0"]
[ECO "B94"]
[WhiteElo "1982"]
[BlackElo "1594"]
[Annotator "RC"]
[PlyCount "87"]
[EventDate "2023.12.04"]
[EventType "swiss"]
[EventCountry "IND"]
[SourceTitle "playchess.com"]
[Source "ChessBase"]
[SourceQuality "1"]
[TimeControl "5400+30"]

1. e4 {[%emt 0:00:05]} c5 {[%emt 0:00:33]} 2. Nf3 {[%emt 0:00:10]} d6 {[%emt 0:00:08]} 3. d4 {[%emt 0:00:04]} cxd4 {[%emt 0:00:31]} 4. Nxd4 {[%emt 0:00:03]} Nf6 {[%emt 0:00:15]} 5. Nc3 {[%emt 0:00:04]} a6 {[%emt 0:00:06]} 6. Bg5 {[%emt 0:00:03]} Nbd7 {[%emt 0:00:07]} 7. f4 {[%emt 0:00:09]} Qc7 {[%emt 0:00:06]} 8. Qf3 {[%emt 0:00:04]} h6 {[%emt 0:00:05]} 9. Bxf6 {[%emt 0:02:36]} Nxf6 {[%emt 0:00:08]} 10. h3 {[%emt 0:01:04]} g5 {[%emt 0:00:07]} 11. fxg5 {[%emt 0:20:15]} hxg5 {[%emt 0:00:07]} 12. O-O-O {[%emt 0:00:08]} g4 {[%emt 0:02:37]} 13. Qf2 {[%emt 0:02:37]} Bd7 {[%emt 0:00:43]} 14. Nd5 {[%emt 0:01:19]} Nxd5 {[%emt 0:00:28]} 15. exd5 {[%emt 0:00:03]} gxh3 {[%emt 0:02:23]} 16. gxh3 {[%emt 0:01:31]} Bg7 {[%emt 0:00:55]} 17. Bg2 {[%emt 0:08:41]} Bf6 {[%emt 0:01:02]} 18. Rd3 {[%emt 0:00:57]} Qb6 {[%emt 0:08:58]} 19. Rhd1 {[%emt 0:07:28]} Bb5 {[%emt 0:03:25]} 20. Rf3 {[%emt 0:00:22]} Rh6 {[%emt 0:06:22]} 21. Rg3 {[%emt 0:07:20]} Rh8 {[%emt 0:02:07]} 22. Rf3 {[%emt 0:27:03]} Rh6 {[%emt 0:00:55]} 23. Nxb5 {[%emt 0:04:52]} Qxf2 {[%emt 0:01:28]} 24. Nxd6+ {[%emt 0:00:08]} exd6 {[%emt 0:00:29]} 25. Rxf2 {[%emt 0:00:02]} Be5 {[%emt 1:08:55]} 26. Rd3 {[%emt 0:01:05]} Rf6 {[%emt 0:00:00]} 27. Rxf6 {[%emt 0:04:49]} Bxf6 {[%emt 0:00:00]} 28. Rb3 {[%emt 0:00:02]} Rb8 {[%emt 0:00:00]} 29. Bf3 {[%emt 0:00:13]} Kd7 {[%emt 0:00:00]} 30. Bg4+ {[%emt 0:00:20]} Kc7 {[%emt 0:00:00]} 31. Rf3 {[%emt 0:00:49]} Bg5+ {[%emt 0:00:00]} 32. Kd1 {[%emt 0:00:01]} f6 {[%emt 0:00:00]} 33. Be6 {[%emt 0:01:08]} Rh8 {[%emt 0:00:00]} 34. c4 {[%emt 0:01:15]} Kb6 {[%emt 0:00:00]} 35. Rb3+ {[%emt 0:01:16]} Kc7 {[%emt 0:00:00]} 36. Rc3 {[%emt 0:00:29]} Kb6 {[%emt 0:00:00]} 37. b4 {[%emt 0:00:18]} Kc7 {[%emt 0:00:00]} 38. c5 {[%emt 0:00:29]} Rh4 {[%emt 0:00:00]} 39. a3 {[%emt 0:02:09]} Rd4+ {[%emt 0:00:00]} 40. Ke2 {[%emt 0:00:21]} Rd2+ {[%emt 0:00:00]} 41. Kf3 {[%emt 0:00:08]} Ra2 {[%emt 0:00:00]} 42. Ke4 {[%emt 0:02:39]} Bd2 {[%emt 0:00:00]} 43. Rf3 {[%emt 0:00:28]} dxc5 {[%emt 0:00:00]} 44. d6+ {[%emt 0:00:14]} 1-0

[Event "36th Indian-ch U13 Open 2023"]
[Site "Secunderabad"]
[Date "2023.12.06"]
[Round "5.9"]
[White "Madhesh Kumar S"]
[Black "Aakash G"]
[Result "1/2-1/2"]
[ECO "C01"]
[WhiteElo "1580"]
[BlackElo "1935"]
[Annotator "RC"]
[PlyCount "104"]
[EventDate "2023.12.04"]
[EventType "swiss"]
[EventCountry "IND"]
[SourceTitle "playchess.com"]
[Source "ChessBase"]
[SourceQuality "1"]
[TimeControl "5400+30"]

1. e4 {[%emt 0:00:04]} e6 {[%emt 0:00:08]} 2. d4 {[%emt 0:00:13]} d5 {[%emt 0:00:06]} 3. exd5 {[%emt 0:00:06]} exd5 {[%emt 0:00:04]} 4. Bd3 {[%emt 0:00:25]} c5 {[%emt 0:00:17]} 5. dxc5 {[%emt 0:00:04]} Bxc5 {[%emt 0:00:05]} 6. Nf3 {[%emt 0:00:11]} Nf6 {[%emt 0:00:14]} 7. O-O {[%emt 0:00:47]} O-O {[%emt 0:00:07]} 8. Bg5 {[%emt 0:00:48]} Be6 {[%emt 0:01:23]} 9. Nbd2 {[%emt 0:01:12]} Nbd7 {[%emt 0:00:45]} 10. Bf4 {[%emt 0:01:53]} Bg4 {[%emt 0:01:59]} 11. c3 {[%emt 0:02:16]} Re8 {[%emt 0:00:56]} 12. Qc2 {[%emt 0:01:13]} Qb6 {[%emt 0:01:43]} 13. b4 {[%emt 0:05:26]} Bd6 {[%emt 0:03:51]} 14. Bxd6 {[%emt 0:00:14]} Qxd6 {[%emt 0:00:06]} 15. Nd4 {[%emt 0:00:14]} Ne5 {[%emt 0:00:48]} 16. Rfe1 {[%emt 0:03:52]} Rac8 {[%emt 0:02:21]} 17. f3 {[%emt 0:07:28]} Bh5 {[%emt 0:00:24]} 18. N2b3 {[%emt 0:01:35]} Bg6 {[%emt 0:01:05]} 19. Bxg6 {[%emt 0:00:42]} hxg6 {[%emt 0:00:34]} 20. Rad1 {[%emt 0:02:33]} b6 {[%emt 1:23:34]} 21. a4 {[%emt 0:08:17]} Nfd7 {[%emt 0:00:00]} 22. Re2 {[%emt 0:07:40]} Nc4 {[%emt 0:00:00]} 23. Rde1 {[%emt 0:00:11]} Rxe2 {[%emt 0:00:00]} 24. Qxe2 {[%emt 0:00:11]} Nf6 {[%emt 0:00:00]} 25. Qe7 {[%emt 0:19:32]} Qb8 {[%emt 0:00:00]} 26. Qe2 {[%emt 0:00:56]} Re8 {[%emt 0:00:00]} 27. Qf2 {[%emt 0:00:29]} Ne5 {[%emt 0:00:00]} 28. Qd2 {[%emt 0:07:15]} Rc8 {[%emt 0:00:00]} 29. b5 {[%emt 0:02:00]} Qc7 {[%emt 0:00:00]} 30. Qe2 {[%emt 0:07:26]} Re8 {[%emt 0:00:00]} 31. Qd2 {[%emt 0:00:34]} Re7 {[%emt 0:00:00]} 32. Re2 {[%emt 0:10:11]} Nh5 {[%emt 0:00:00]} 33. g3 {[%emt 0:04:22]} Qc4 {[%emt 0:00:00]} 34. Kg2 {[%emt 0:00:39]} Qxa4 {[%emt 0:00:00]} 35. Qc2 {[%emt 0:06:27]} Qa3 {[%emt 0:00:00]} 36. Nc6 {[%emt 0:00:32]} Nxc6 {[%emt 0:00:00]} 37. bxc6 {[%emt 0:00:04]} Rc7 {[%emt 0:00:00]} 38. Nd4 {[%emt 0:00:38]} a6 {[%emt 0:00:00]} 39. Re8+ {[%emt 0:00:47]} Kh7 {[%emt 0:00:00]} 40. Ra8 {[%emt 0:00:27]} Qa5 {[%emt 0:00:00]} 41. Qe2 {[%emt 0:01:06]} Qxc3 {[%emt 0:00:00]} 42. Qe8 {[%emt 0:00:00]} Qd2+ {[%emt 0:00:00]} 43. Kh3 {[%emt 0:00:00]} g5 {[%emt 0:00:00]} 44. Qe5 {[%emt 0:00:22]} Qd3 {[%emt 0:00:00]} 45. Qxc7 {[%emt 0:00:59]} Qf1+ {[%emt 0:00:00]} 46. Kg4 {[%emt 0:00:10]} Kg6 {[%emt 0:00:00]} 47. Qd6+ {[%emt 0:00:58]} Nf6+ {[%emt 0:00:00]} 48. Qxf6+ {[%emt 0:00:11]} gxf6 {[%emt 0:00:00]} 49. Rg8+ {[%emt 0:00:39]} Kh7 {[%emt 0:00:00]} 50. c7 {[%emt 0:00:12]} f5+ {[%emt 0:00:00]} 51. Kxf5 {[%emt 0:00:24]} Qh3+ {[%emt 0:00:00]} 52. g4 {[%emt 0:00:10]} Qxh2 {[%emt 0:16:00]} 1/2-1/2